fUSD/lending_fUSD_20250513
["ID","MTS","AMOUNT","RATE_DAILY","PERIOD"]
[360949064,1747159924752,-400.0,0.00014794,2]
[360949065,1747159924762,-400.0,0.00014794,2]
[360949066,1747159924772,-626.45,0.00014794,2]
[360949067,1747159924781,-400.0,0.00014794,2]
[360949068,1747159924791,-626.11,0.00014794,2]
[360949069,1747159924800,-400.0,0.00014794,2]
[360949070,1747159924810,-463.34,0.00014794,2]
[360949071,1747159924819,-488.25,0.00014794,2]
[360949072,1747159924828,-400.0,0.00014794,2]
[360949073,1747159924837,-400.0,0.00014794,2]
[360949074,1747159924847,-657.34,0.00014794,2]
[360949075,1747159924856,-493.79772007,0.00014794,2]
[360949076,1747159924866,-441.68,0.00014794,2]
[360949077,1747159924876,-645.08,0.00014794,2]
[360949078,1747159924885,-530.14,0.00014794,2]
[360949079,1747159924895,-400.0,0.00014794,2]
[360949080,1747159924904,-400.0,0.00014794,2]
[360949081,1747159924913,-852.22,0.00014794,2]
[360949082,1747159924924,-400.0,0.00014794,2]
[360949083,1747159924933,-820.71,0.00014794,2]
[360949084,1747159924943,-400.0,0.00014794,2]
[360949085,1747159924953,-205.2714322,0.00014794,2]
[360949086,1747159924962,-621.83,0.00014794,2]
[360949087,1747159924972,-400.0,0.00014794,2]
[360949088,1747159924983,-478.47,0.00014794,2]
[360949089,1747159924992,-400.0,0.00014794,2]
[360949090,1747159925002,-404.78,0.00014794,2]
[360949091,1747159925012,-290.34009773,0.00014794,2]
[360949092,1747159925021,-1162.05,0.00014794,2]
[360949093,1747159925030,-400.0,0.00014794,2]
[360949094,1747159925040,-1079.27,0.00014794,2]
[360949095,1747159925050,-577.59,0.00014794,2]
[360949096,1747159925059,-426.15,0.00014794,2]
[360949097,1747159925069,-3487.68,0.00014794,2]
[360949098,1747159925079,-400.0,0.00014794,2]
[360949099,1747159925088,-459.19,0.00014794,2]
[360949100,1747159925098,-444.36,0.00014794,2]
[360949101,1747159925107,-1738.21,0.00014794,2]
[360949102,1747159925116,-615.27,0.00014794,2]
[360949103,1747159925125,-420.8,0.00014794,2]
[360949104,1747159925135,-400.0,0.00014794,2]
[360949105,1747159925144,-1176.5,0.00014794,2]
[360949106,1747159925155,-1437.22,0.00014794,2]
[360949107,1747159925166,-652.56,0.00014794,2]
[360949108,1747159925178,-488.24,0.00014794,2]
[360949109,1747159925188,-1273.02,0.00014794,2]
[360949110,1747159925197,-400.0,0.00014794,2]
[360949111,1747159925207,-801.33,0.00014794,2]
[360949112,1747159925218,-788.97,0.00014794,2]
[360949113,1747159925227,-400.0,0.00014794,2]
[360949114,1747159925237,-414.37,0.00014794,2]
[360949115,1747159925247,-542.34,0.00014794,2]
[360949116,1747159925257,-449.97,0.00014794,2]
[360949117,1747159925267,-426.3,0.00014794,2]
[360949118,1747159925276,-400.0,0.00014794,2]
[360949119,1747159925286,-1871.8,0.00014794,2]
[360949120,1747159925296,-1359.59,0.00014794,2]
[360949121,1747159925306,-475.68,0.00014794,2]
[360949122,1747159925316,-472.81,0.00014794,2]
[360949123,1747159925326,-400.0,0.00014794,2]
[360949124,1747159925336,-539.11,0.00014794,2]
[360949125,1747159925346,-400.0,0.00014794,2]
[360949126,1747159925355,-1207.49,0.00014794,2]
[360949127,1747159925365,-400.0,0.00014794,2]
[360949128,1747159925375,-1135.76,0.00014794,2]
[360949129,1747159925384,-1233.2,0.00014794,2]
[360949130,1747159925393,-657.57,0.00014794,2]
[360949131,1747159925402,-726.64,0.00014794,2]
[360949132,1747159925412,-400.0,0.00014794,2]
[360949133,1747159925422,-1268.75,0.00014794,2]
[360949134,1747159925432,-529.97,0.00014794,2]
[360949135,1747159925442,-400.0,0.00014794,2]
[360949136,1747159925453,-608.84,0.00014794,2]
[360949137,1747159925462,-400.0,0.00014794,2]
[360949138,1747159925473,-400.0,0.00014794,2]
[360949139,1747159925483,-457.91,0.00014794,2]
[360949140,1747159925492,-995.85,0.00014794,2]
[360949141,1747159925501,-416.03,0.00014794,2]
[360949142,1747159925511,-736.58,0.00014794,2]
[360949143,1747159925521,-400.0,0.00014794,2]
[360949144,1747159925531,-411.21,0.00014794,2]
[360949145,1747159925540,-553.17,0.00014794,2]
[360949146,1747159925551,-2771.94,0.00014794,2]
[360949147,1747159925560,-400.0,0.00014794,2]
[360949148,1747159925569,-547.99,0.00014794,2]
[360949149,1747159925579,-2640.23,0.00014794,2]
[360949150,1747159925588,-400.0,0.00014794,2]
[360949151,1747159925599,-1191.42,0.00014794,2]
[360949152,1747159925609,-400.0,0.00014794,2]
[360949153,1747159925618,-1798.17,0.00014794,2]
[360949154,1747159925627,-3074.15,0.00014794,2]
[360949155,1747159925637,-1043.95,0.00014794,2]
[360949156,1747159925647,-828.17,0.00014794,2]
[360949157,1747159925656,-1909.44,0.00014794,2]
[360949158,1747159925666,-2209.39,0.00014794,2]
[360949159,1747159925675,-2113.1,0.00014794,2]
[360949160,1747159925685,-1584.79,0.00014794,2]
[360949161,1747159925694,-894.32,0.00014794,2]
[360949162,1747159925704,-2266.23,0.00014794,2]
[360949163,1747159925714,-400.0,0.00014794,2]
[360949164,1747159925723,-403.62,0.00014794,2]
[360949165,1747159925732,-400.0,0.00014794,2]
[360949166,1747159925742,-1157.78,0.00014794,2]
[360949167,1747159925752,-448.59,0.00014794,2]
[360949168,1747159925762,-2334.67,0.00014794,2]
[360949169,1747159925771,-2166.25,0.00014794,2]
[360949170,1747159925781,-3592.14,0.00014794,2]
[360949171,1747159925790,-414.75,0.00014794,2]
[360949172,1747159925799,-576.56,0.00014794,2]
[360949173,1747159925809,-400.0,0.00014794,2]
[360949174,1747159925818,-400.0,0.00014794,2]
[360949175,1747159925827,-529.13,0.00014794,2]
[360949176,1747159925836,-500.19,0.00014794,2]
[360949177,1747159925846,-1411.28,0.00014794,2]
[360949178,1747159925855,-155.53643829,0.00014794,2]
[360949179,1747159925864,-445.9,0.00014794,2]
[360949180,1747159925874,-534.86,0.00014794,2]
[360949181,1747159925883,-706.58,0.00014794,2]
[360949182,1747159925893,-1060.09,0.00014794,2]
[360949183,1747159925903,-440.85,0.00014794,2]
[360949184,1747159925912,-785.11,0.00014794,2]
[360949185,1747159925921,-782.86,0.00014794,2]
[360949186,1747159925931,-508.12,0.00014794,2]
[360949187,1747159925940,-792.31,0.00014794,2]
[360949188,1747159925950,-1373.03,0.00014794,2]
[360949189,1747159925959,-507.26,0.00014794,2]
[360949190,1747159925968,-400.0,0.00014794,2]
[360949191,1747159925978,-439.37,0.00014794,2]
[360949192,1747159925987,-400.0,0.00014794,2]
[360949193,1747159925997,-835.87,0.00014794,2]
[360949194,1747159926007,-1203.29,0.00014794,2]
[360949195,1747159926017,-705.65,0.00014794,2]
[360949196,1747159926027,-871.93,0.00014794,2]
[360949197,1747159926036,-400.0,0.00014794,2]
[360949198,1747159926045,-786.26,0.00014794,2]
[360949199,1747159926055,-801.16,0.00014794,2]
[360949200,1747159926064,-1841.1,0.00014794,2]
[360949201,1747159926073,-522.01,0.00014794,2]
[360949202,1747159926083,-400.0,0.00014794,2]
[360949203,1747159926092,-952.91,0.00014794,2]
[360949204,1747159926101,-589.31,0.00014794,2]
[360949205,1747159926112,-440.12,0.00014794,2]
[360949206,1747159926121,-689.79,0.00014794,2]
[360949207,1747159926130,-1040.35,0.00014794,2]
[360949208,1747159926140,-2832.85,0.00014794,2]
[360949209,1747159926149,-400.0,0.00014794,2]
[360949210,1747159926158,-837.08,0.00014794,2]
[360949211,1747159926171,-722.75,0.00014794,2]
[360949212,1747159926180,-1518.61,0.00014794,2]
[360949213,1747159926190,-418.45,0.00014794,2]
[360949214,1747159926199,-538.57,0.00014794,2]
[360949215,1747159926208,-2035.72,0.00014794,2]
[360949216,1747159926218,-452.37,0.00014794,2]
[360949217,1747159926228,-504.22,0.00014794,2]
[360949218,1747159926237,-699.02,0.00014794,2]
[360949219,1747159926248,-928.98,0.00014794,2]
[360949220,1747159926259,-1636.63,0.00014794,2]
[360949221,1747159926270,-494.98,0.00014794,2]
[360949222,1747159926280,-1883.29,0.00014794,2]
[360949223,1747159926290,-610.23,0.00014794,2]
[360949224,1747159926301,-768.25,0.00014794,2]
[360949225,1747159926311,-768.75,0.00014794,2]
[360949226,1747159926321,-1014.11,0.00014794,2]
[360949227,1747159926330,-620.02,0.00014794,2]
[360949228,1747159926339,-1271.95,0.00014794,2]
[360949229,1747159926349,-400.0,0.00014794,2]
[360949230,1747159926358,-756.59,0.00014794,2]
[360949231,1747159926368,-400.0,0.00014794,2]
[360949232,1747159926378,-935.97,0.00014794,2]
[360949233,1747159926387,-1412.1,0.00014794,2]
[360949234,1747159926397,-539.94,0.00014794,2]
[360949235,1747159926407,-1632.7,0.00014794,2]
[360949236,1747159926416,-871.79,0.00014794,2]
[360949237,1747159926426,-400.0,0.00014794,2]
[360949238,1747159926436,-451.47,0.00014794,2]
[360949239,1747159926445,-400.0,0.00014794,2]
[360949240,1747159926455,-560.27,0.00014794,2]
[360949241,1747159926464,-400.0,0.00014794,2]
[360949242,1747159926474,-2068.68,0.00014794,2]
[360949243,1747159926483,-570.27,0.00014794,2]
[360949244,1747159926493,-967.47,0.00014794,2]
[360949245,1747159926504,-669.93,0.00014794,2]
[360949246,1747159926514,-1036.32,0.00014794,2]
[360949247,1747159926523,-444.85,0.00014794,2]
[360949248,1747159926534,-680.61,0.00014794,2]
[360949249,1747159926543,-4665.34,0.00014794,2]
[360949250,1747159926553,-400.0,0.00014794,2]
[360949251,1747159926563,-1314.16,0.00014794,2]
[360949252,1747159926572,-4183.88,0.00014794,2]
[360949253,1747159926582,-547.25,0.00014794,2]
[360949254,1747159926591,-400.0,0.00014794,2]
[360949255,1747159926601,-579.54,0.00014794,2]
[360949256,1747159926610,-786.38,0.00014794,2]
[360949257,1747159926619,-1255.33,0.00014794,2]
[360949258,1747159926629,-2046.23,0.00014794,2]
[360949259,1747159926638,-577.34,0.00014794,2]
[360949260,1747159926647,-9519.31,0.00014794,2]
[360949261,1747159926656,-834.73,0.00014794,2]
[360949262,1747159926665,-548.98267489,0.00014794,2]
[360949263,1747159926675,-1346.7,0.00014794,2]
[360949264,1747159926685,-2754.3,0.00014794,2]
[360949265,1747159926695,-10256.28,0.00014794,2]
[360949266,1747159926705,-400.0,0.00014794,2]
[360949267,1747159926715,-487.25,0.00014794,2]
[360949268,1747159926725,-400.0,0.00014794,2]
[360949269,1747159926734,-400.0,0.00014794,2]
[360949270,1747159926745,-400.0,0.00014794,2]
[360949271,1747159926755,-2145.85,0.00014794,2]
[360949272,1747159926765,-778.75,0.00014794,2]
[360949273,1747159926778,-1086.29,0.00014794,2]
[360949274,1747159926787,-712.61,0.00014794,2]
[360949275,1747159926797,-1146.85,0.00014794,2]
[360949276,1747159926807,-427.04,0.00014794,2]
[360949277,1747159926817,-1787.73,0.00014794,2]
[360949278,1747159926827,-587.09,0.00014794,2]
[360949279,1747159926837,-2676.84,0.00014794,2]
[360949280,1747159926847,-936.8,0.00014794,2]
[360949281,1747159926857,-538.65,0.00014794,2]
[360949282,1747159926867,-570.54,0.00014794,2]
[360949283,1747159926876,-671.91,0.00014794,2]
[360949284,1747159926885,-1004.59,0.00014794,2]
[360949285,1747159926895,-422.26573239,0.00014794,2]
[360949286,1747159926905,-583.74,0.00014794,2]
[360949287,1747159926915,-628.15,0.00014794,2]
[360949288,1747159926924,-409.42,0.00014794,2]
[360949289,1747159926934,-10626.02,0.00014794,2]
[360949290,1747159926943,-364.54132931,0.00014794,2]
[360949291,1747159926952,-515.12,0.00014794,2]
[360949292,1747159926962,-6049.69,0.00014794,2]
[360949293,1747159926972,-1033.11,0.00014794,2]
[360949294,1747159926982,-400.0,0.00014794,2]
[360949295,1747159926992,-437.19,0.00014794,2]
[360949296,1747159927002,-569.55,0.00014794,2]
[360949297,1747159927012,-467.47,0.00014794,2]
[360949298,1747159927022,-2264.96,0.00014794,2]
[360949299,1747159927032,-795.31,0.00014794,2]
[360949300,1747159927043,-405.13,0.00014794,2]
[360949301,1747159927052,-1277.12,0.00014794,2]
[360949302,1747159927062,-400.0,0.00014794,2]
[360949303,1747159927072,-10483.18,0.00014794,2]
[360949304,1747159927082,-1585.22,0.00014794,2]
[360949305,1747159927092,-843.23,0.00014794,2]
[360949306,1747159927102,-1106.58,0.00014794,2]
[360949307,1747159927111,-400.0,0.00014794,2]
[360949308,1747159927121,-413.28,0.00014794,2]
[360949309,1747159927131,-1973.13,0.00014794,2]
[360949310,1747159927141,-400.0,0.00014794,2]
[360949311,1747159927150,-565.33,0.00014794,2]
[360949312,1747159927160,-1087.57,0.00014794,2]
[360949313,1747159927173,-2020.68,0.00014794,2]
[360949314,1747159927183,-400.0,0.00014794,2]
[360949315,1747159927193,-686.06,0.00014794,2]
[360949316,1747159927203,-400.0,0.00014794,2]
[360949317,1747159927213,-172.48546509,0.00014794,2]
[360949318,1747159927224,-1760.36,0.00014794,2]
[360949319,1747159927234,-2493.43,0.00014794,2]
[360949320,1747159927245,-483.53,0.00014794,2]
[360949321,1747159927255,-523.64,0.00014794,2]
[360949322,1747159927264,-2179.19,0.00014794,2]
[360949323,1747159927275,-933.31,0.00014794,2]
[360949324,1747159927285,-1454.44,0.00014794,2]
[360949325,1747159927295,-448.16,0.00014794,2]
[360949326,1747159927305,-669.67,0.00014794,2]
[360949327,1747159927314,-495.63,0.00014794,2]
[360949328,1747159927324,-407.59,0.00014794,2]
[360949329,1747159927334,-2557.8,0.00014794,2]
[360949330,1747159927344,-733.19,0.00014794,2]
[360949331,1747159927354,-1387.03,0.00014794,2]
[360949332,1747159927364,-1323.75,0.00014794,2]
[360949333,1747159927375,-639.94,0.00014794,2]
[360949334,1747159927385,-1956.5,0.00014794,2]
[360949335,1747159927395,-101544.96,0.00014794,2]
[360949336,1747159927404,-447.02,0.00014794,2]
[360949337,1747159927415,-2181.62,0.00014794,2]
[360949338,1747159927424,-707.87,0.00014794,2]
[360949339,1747159927434,-946.15,0.00014794,2]
[360949340,1747159927443,-809.14,0.00014794,2]
[360949341,1747159927453,-676.8,0.00014794,2]
[360949342,1747159927463,-492.65,0.00014794,2]
[360949343,1747159927473,-2313.22,0.00014816,2]
[360949344,1747159927482,-13186.5900833,0.00014819,2]
[360949345,1747159927492,-4071.95,0.00014829,2]
[360949346,1747159927501,-5722.81445107,0.000149,2]
[360949347,1747159927511,-500.0,0.000149,2]
[360949348,1747159927520,-6037.54397752,0.000149,2]
[360949349,1747159927531,-218.1265814,0.000149,2]
[360949350,1747159927541,-218.1265814,0.000149,2]
[360949351,1747159927550,-751.27,0.00014913,2]
[360949352,1747159927560,-2201.82055462,0.00014914,2]
[360949353,1747159927569,-151.0,0.00014968,2]
[360949354,1747159927579,-1000.0,0.0001497,2]
[360949355,1747159927588,-500.0,0.0001497,2]
[360949356,1747159927598,-9231.11701815,0.0001498,2]
[360949357,1747159927609,-4680.18814651,0.0001498,2]
[360949358,1747159927618,-1925.62,0.00014986,2]
[360949359,1747159927627,-700.44690189,0.0001499,2]
[360949360,1747159927637,-73311.75672117,0.0001499,2]
[360949361,1747159927646,-151.0,0.0001499,2]
[360949362,1747159927655,-1981.1781402,0.00015,2]
[360949363,1747159927665,-7712.49762753,0.00015,2]
[360949364,1747159927894,-358.67410497,0.00015,2]
[360949365,1747159927905,-18339.75039175,0.00015,2]
[360949366,1747159927914,-5555.0,0.00015,2]
[360949367,1747159927924,-53660.38915344,0.00015,2]
[360949368,1747159927934,-22382.03580387,0.00015,7]
[360949369,1747159927943,-585.56078373,0.00015,7]
[360949370,1747159927953,-2000.0,0.00015,7]
[360949371,1747159927963,-1050.0,0.00015,4]
[360949372,1747159927972,-2168.82270165,0.00015,14]
[360949373,1747159927982,-400.0,0.00015068,2]
[360949374,1747159927994,-2722.32,0.00015068,2]
[360949375,1747159928004,-252.882858,0.00015068,2]
[360949376,1747159928014,-151.0,0.00015068,2]
[360949377,1747159928023,-916.93,0.00015068,2]
[360949378,1747159928032,-520.78,0.00015068,2]
[360949379,1747159928041,-506.41,0.00015068,2]
[360949380,1747159928050,-694.78,0.00015068,2]
[360949381,1747159928059,-383.58781054,0.00015068,2]
[360949382,1747159928069,-400.0,0.00015068,2]
[360949383,1747159928078,-626.45,0.00015068,2]
[360949384,1747159928087,-400.0,0.00015068,2]
[360949385,1747159928096,-626.11,0.00015068,2]
[360949386,1747159928105,-400.0,0.00015068,2]
[360949387,1747159928114,-463.34,0.00015068,2]
[360949388,1747159928123,-488.25,0.00015068,2]
[360949389,1747159928132,-400.0,0.00015068,2]
[360949390,1747159928141,-400.0,0.00015068,2]
[360949391,1747159928150,-657.34,0.00015068,2]
[360949392,1747159928158,-441.68,0.00015068,2]
[360949393,1747159928175,-645.08,0.00015068,2]
[360949394,1747159928183,-530.14,0.00015068,2]
[360949395,1747159928191,-400.0,0.00015068,2]
[360949396,1747159928200,-400.0,0.00015068,2]
[360949397,1747159928208,-852.22,0.00015068,2]
[360949398,1747159928218,-400.0,0.00015068,2]
[360949399,1747159928226,-820.71,0.00015068,2]
[360949400,1747159928235,-400.0,0.00015068,2]
[360949401,1747159928243,-621.83,0.00015068,2]
[360949402,1747159928253,-400.0,0.00015068,2]
[360949403,1747159928261,-478.47,0.00015068,2]
[360949404,1747159928270,-400.0,0.00015068,2]
[360949405,1747159928278,-404.78,0.00015068,2]
[360949406,1747159928287,-1162.05,0.00015068,2]
[360949407,1747159928294,-626.5,0.00015068,2]
[360949408,1747159928303,-400.0,0.00015068,2]
[360949409,1747159928311,-1079.27,0.00015068,2]
[360949410,1747159928320,-577.59,0.00015068,2]
[360949411,1747159928329,-426.15,0.00015068,2]
[360949412,1747159928338,-3487.68,0.00015068,2]
[360949413,1747159928349,-400.0,0.00015068,2]
[360949414,1747159928358,-459.19,0.00015068,2]
[360949415,1747159928367,-444.36,0.00015068,2]
[360949416,1747159928375,-1738.21,0.00015068,2]
[360949417,1747159928383,-615.27,0.00015068,2]
[360949418,1747159928391,-420.8,0.00015068,2]
[360949419,1747159928399,-400.0,0.00015068,2]
[360949420,1747159928408,-1176.5,0.00015068,2]
[360949421,1747159928416,-1437.22,0.00015068,2]
[360949422,1747159928425,-652.56,0.00015068,2]
[360949423,1747159928433,-488.24,0.00015068,2]
[360949424,1747159928442,-1273.02,0.00015068,2]
[360949425,1747159928450,-400.0,0.00015068,2]
[360949426,1747159928458,-801.33,0.00015068,2]
[360949427,1747159928467,-788.97,0.00015068,2]
[360949428,1747159928475,-400.0,0.00015068,2]
[360949429,1747159928484,-414.37,0.00015068,2]
[360949430,1747159928492,-542.34,0.00015068,2]
[360949431,1747159928501,-449.97,0.00015068,2]
[360949432,1747159928510,-426.3,0.00015068,2]
[360949433,1747159928518,-400.0,0.00015068,2]
[360949434,1747159928527,-1871.8,0.00015068,2]
[360949435,1747159928536,-1359.59,0.00015068,2]
[360949436,1747159928545,-475.68,0.00015068,2]
[360949437,1747159928554,-472.81,0.00015068,2]
[360949438,1747159928562,-400.0,0.00015068,2]
[360949439,1747159928570,-539.11,0.00015068,2]
[360949440,1747159928577,-400.0,0.00015068,2]
[360949441,1747159928586,-1207.49,0.00015068,2]
[360949442,1747159928594,-400.0,0.00015068,2]
[360949443,1747159928602,-1135.76,0.00015068,2]
[360949444,1747159928610,-1233.2,0.00015068,2]
[360949445,1747159928620,-657.57,0.00015068,2]
[360949446,1747159928628,-726.64,0.00015068,2]
[360949447,1747159928637,-400.0,0.00015068,2]
[360949448,1747159928646,-529.97,0.00015068,2]
[360949449,1747159928654,-1268.75,0.00015068,2]
[360949450,1747159928663,-373.2878031,0.00015068,2]
[360949451,1747159928673,-608.84,0.00015068,2]
[360949452,1747159928681,-400.0,0.00015068,2]
[360949453,1747159928689,-400.0,0.00015068,2]
[360949454,1747159928698,-457.91,0.00015068,2]
[360949455,1747159928706,-995.85,0.00015068,2]
[360949456,1747159928715,-416.03,0.00015068,2]
[360949457,1747159928724,-736.58,0.00015068,2]
[360949458,1747159928733,-400.0,0.00015068,2]
[360949459,1747159928743,-411.21,0.00015068,2]
[360949460,1747159928752,-553.17,0.00015068,2]
[360949461,1747159928761,-2771.94,0.00015068,2]
[360949462,1747159928770,-400.0,0.00015068,2]
[360949463,1747159928779,-547.99,0.00015068,2]
[360949464,1747159928788,-2640.23,0.00015068,2]
[360949465,1747159928796,-400.0,0.00015068,2]
[360949466,1747159928805,-1191.42,0.00015068,2]
[360949467,1747159928815,-291.59107322,0.00015068,2]
[360949468,1747159928823,-1798.17,0.00015068,2]
[360949469,1747159928832,-3074.15,0.00015068,2]
[360949470,1747159928840,-1043.95,0.00015068,2]
[360949471,1747159928848,-828.17,0.00015068,2]
[360949472,1747159928855,-1909.44,0.00015068,2]
[360949473,1747159928864,-2209.39,0.00015068,2]
[360949474,1747159928874,-2113.1,0.00015068,2]
[360949475,1747159928883,-1584.79,0.00015068,2]
[360949476,1747159928892,-894.32,0.00015068,2]
[360949477,1747159928901,-2266.23,0.00015068,2]
[360949478,1747159928910,-400.0,0.00015068,2]
[360949479,1747159928919,-403.62,0.00015068,2]
[360949480,1747159928930,-400.0,0.00015068,2]
[360949481,1747159928939,-1157.78,0.00015068,2]
[360949482,1747159928947,-448.59,0.00015068,2]
[360949483,1747159928956,-2334.67,0.00015068,2]
[360949484,1747159928965,-2166.25,0.00015068,2]
[360949485,1747159928974,-3592.14,0.00015068,2]
[360949486,1747159928982,-414.75,0.00015068,2]
[360949487,1747159928991,-576.56,0.00015068,2]
[360949488,1747159929000,-400.0,0.00015068,2]
[360949489,1747159929009,-400.0,0.00015068,2]
[360949490,1747159929018,-529.13,0.00015068,2]
[360949491,1747159929027,-500.19,0.00015068,2]
[360949492,1747159929036,-1411.28,0.00015068,2]
[360949493,1747159929044,-445.9,0.00015068,2]
[360949494,1747159929053,-534.86,0.00015068,2]
[360949495,1747159929061,-706.58,0.00015068,2]
[360949496,1747159929070,-1060.09,0.00015068,2]
[360949497,1747159929079,-440.85,0.00015068,2]
[360949498,1747159929087,-785.11,0.00015068,2]
[360949499,1747159929095,-782.86,0.00015068,2]
[360949500,1747159929104,-508.12,0.00015068,2]
[360949501,1747159929113,-792.31,0.00015068,2]
[360949502,1747159929122,-1373.03,0.00015068,2]
[360949503,1747159929132,-507.26,0.00015068,2]
[360949504,1747159929142,-400.0,0.00015068,2]
[360949505,1747159929152,-439.37,0.00015068,2]
[360949506,1747159929161,-400.0,0.00015068,2]
[360949507,1747159929173,-835.87,0.00015068,2]
[360949508,1747159929182,-1203.29,0.00015068,2]
[360949509,1747159929192,-705.65,0.00015068,2]
[360949510,1747159929203,-871.93,0.00015068,2]
[360949511,1747159929212,-400.0,0.00015068,2]
[360949512,1747159929222,-786.26,0.00015068,2]
[360949513,1747159929231,-801.16,0.00015068,2]
[360949514,1747159929241,-1841.1,0.00015068,2]
[360949515,1747159929251,-522.01,0.00015068,2]
[360949516,1747159929260,-400.0,0.00015068,2]
[360949517,1747159929270,-952.91,0.00015068,2]
[360949518,1747159929280,-589.31,0.00015068,2]
[360949519,1747159929291,-440.12,0.00015068,2]
[360949520,1747159929301,-689.79,0.00015068,2]
[360949521,1747159929310,-1040.35,0.00015068,2]
[360949522,1747159929320,-2832.85,0.00015068,2]
[360949523,1747159929329,-400.0,0.00015068,2]
[360949524,1747159929339,-837.08,0.00015068,2]
[360949525,1747159929348,-722.75,0.00015068,2]
[360949526,1747159929358,-1518.61,0.00015068,2]
[360949527,1747159929367,-418.45,0.00015068,2]
[360949528,1747159929376,-538.57,0.00015068,2]
[360949529,1747159929386,-2035.72,0.00015068,2]
[360949530,1747159929395,-452.37,0.00015068,2]
[360949531,1747159929406,-504.22,0.00015068,2]
[360949532,1747159929416,-699.02,0.00015068,2]
[360949533,1747159929426,-928.98,0.00015068,2]
[360949534,1747159929435,-1636.63,0.00015068,2]
[360949535,1747159929445,-494.98,0.00015068,2]
[360949536,1747159929454,-1883.29,0.00015068,2]
[360949537,1747159929464,-610.23,0.00015068,2]
[360949538,1747159929474,-768.25,0.00015068,2]
[360949539,1747159929483,-768.75,0.00015068,2]
[360949540,1747159929493,-1014.11,0.00015068,2]
[360949541,1747159929503,-620.02,0.00015068,2]
[360949542,1747159929512,-1271.95,0.00015068,2]
[360949543,1747159929521,-400.0,0.00015068,2]
[360949544,1747159929530,-756.59,0.00015068,2]
[360949545,1747159929540,-156.47922234,0.00015068,2]
[360949546,1747159929549,-935.97,0.00015068,2]
[360949547,1747159929558,-1412.1,0.00015068,2]
[360949548,1747159929567,-539.94,0.00015068,2]
[360949549,1747159929576,-1632.7,0.00015068,2]
[360949550,1747159929585,-871.79,0.00015068,2]
[360949551,1747159929595,-400.0,0.00015068,2]
[360949552,1747159929604,-451.47,0.00015068,2]
[360949553,1747159929613,-400.0,0.00015068,2]
[360949554,1747159929623,-560.27,0.00015068,2]
[360949555,1747159929632,-400.0,0.00015068,2]
[360949556,1747159929641,-2068.68,0.00015068,2]
[360949557,1747159929650,-967.47,0.00015068,2]
[360949558,1747159929659,-570.27,0.00015068,2]
[360949559,1747159929669,-669.93,0.00015068,2]
[360949560,1747159929678,-1036.32,0.00015068,2]
[360949561,1747159929687,-444.85,0.00015068,2]
[360949562,1747159929697,-680.61,0.00015068,2]
[360949563,1747159929706,-4665.34,0.00015068,2]